Cogmind - Beta 16 @@@ ROGUE MODE // 2026.02.07 @ 11:16:24 Player: MrFartsburg Result: Destroyed by P-60 Hacker with Shock Rifle Performance ------------- Evolutions (3) 1500 Regions Visited (6) 1200 Robots Destroyed (61) 305 Value Destroyed (2163) 2163 Prototype IDs (3) 60 Alien Tech Used (0) 0 Bonus (65) 65 TOTAL SCORE: 5293 Bonus ------- High Alert Combat Kills 35 Follower Combat Kills 30 Cogmind --------- Core Integrity 0/700 Matter 245/300 Energy 348/360 System Corruption 14% Temperature Danger (410) Movement Hovering (108) Ox1 Location -7/Factory Parts ------- > --- POWER (3) -------- Heavy Deuterium Engine Micro Nuclear Core > --- PROPULSION (4) --- Gravmag System Gravmag System Gravmag System Gravmag System > --- UTILITY (4) ------ Large Storage Unit Advanced Visual Processing Unit Advanced ECM Suite Layered Light Armor Plating > --- WEAPON (2) ------- Particle Gun Heavy Flail > --- INVENTORY (15) --- Carbon-fiber Leg Improved Heat Sink Improved Heat Sink Advanced Visual Processing Unit Terrain Scan Processor Kinecellerator Advanced ECM Suite Improved Power Shielding Component Analysis Suite Recalibrator Peak State ------------ > --- POWER ------------ Light Nuclear Core Heavy Deuterium Engine Micro Nuclear Core > --- PROPULSION ------- Gravmag System Gravmag System Gravmag System Gravmag System > --- UTILITY ---------- Large Storage Unit Advanced Visual Processing Unit Advanced ECM Suite Layered Light Armor Plating > --- WEAPON ----------- Particle Gun Heavy Flail > --- INVENTORY -------- Carbon-fiber Leg Improved Heat Sink Improved Heat Sink Large Matter Pod Advanced Visual Processing Unit Terrain Scan Processor Kinecellerator Advanced ECM Suite Improved Power Shielding Component Analysis Suite Recalibrator [Rating: 48] Favorites ----------- Power Light Nuclear Core Engine Light Angular Momentum Engine Power Core Light Nuclear Core Propulsion Aluminum Leg Treads Light Treads Leg Aluminum Leg Wheel Compact Wheel Hover Unit Improved Hover Unit Utility Large Storage Unit Device Cooling System Storage Large Storage Unit Processor Advanced Targeting Computer Hackware System Shield Protection Improved Power Shielding Weapon Heavy Flail Energy Gun Heavy EM Pulse Gun Energy Cannon Advanced Beam Cannon Ballistic Gun Light Assault Rifle Ballistic Cannon Flak Cannon Launcher Rocket Launcher Special Weapon Welding Torch Impact Weapon Heavy Flail Build | -11 -10 -9 -8 -7 -7 -7 ------- Run | Yrd Mat Mat Mat Fac Was Fac Slots Evolved 6 | . . 2 2 2 . . Power 2 | . . 1 . 1 . . Propulsion 2 | . . . 2 . . . Utility 2 | . . 1 . 1 . . Weapon . | . . . . . . . Parts Attached 75 | 6 4 13 12 8 2 30 Power 12 | 1 . 4 2 2 . 3 Engine 8 | 1 . 4 1 1 . 1 Core 4 | . . . 1 1 . 2 Reactor . | . . . . . . . Propulsion 26 | 2 . 5 7 1 . 11 Treads 3 | . . . 3 . . . Leg 15 | . . 3 4 1 . 7 Wheel 2 | 2 . . . . . . Hover 6 | . . 2 . . . 4 Flight . | . . . . . . . Utility 21 | 1 2 1 2 3 . 12 Device 9 | . 1 1 . 1 . 6 Storage 5 | 1 1 . . 1 . 2 Processor 3 | . . . 1 . . 2 Hackware 1 | . . . . 1 . . Protection 3 | . . . 1 . . 2 Artifact . | . . . . . . . Weapon 16 | 2 2 3 1 2 2 4 Energy Gun 5 | 1 . 2 . . . 2 Energy Cannon 1 | . 1 . . . . . Ballistic Gun 3 | 1 . . . . 1 1 Ballistic Cannon 1 | . . . 1 . . . Launcher 3 | . . 1 . 2 . . Special Weapon 1 | . 1 . . . . . Impact Weapon 2 | . . . . . 1 1 Slashing Weapon . | . . . . . . . Piercing Weapon . | . . . . . . . Special Melee Weapon . | . . . . . . . Unidentified Prototypes 3 | . 1 . . . 1 1 Parts Lost 25 | . . 4 3 6 6 6 Power 5 | . . 1 1 1 1 1 Propulsion 5 | . . 1 1 1 1 1 Utility 6 | . . 1 . . 3 2 Weapon 9 | . . 1 1 4 1 2 Highest Loss Streak 5 | . . 3 1 3 5 2 To Critical Strikes . | . . . . . . . Average Backups 9 | 3 8 14 13 11 8 4 Power . | 1 1 . 1 . . . Propulsion 2 | 1 4 3 3 4 2 1 Utility 3 | . 1 5 3 1 2 3 Weapon 2 | . 1 3 5 5 3 . Tool/Special . | . . . . . . . Unused Backups 20 | . 2 3 2 1 6 6 Power 1 | . . . . . 1 . Propulsion 1 | . . . . . 1 . Utility 12 | . 1 3 1 1 1 5 Weapon 6 | . 1 . 1 . 3 1 Tool/Special . | . . . . . . . Average Slot Usage (%) 83 | . 95 97 94 95 30 68 Engine 9 | . 14 20 9 10 3 2 Core 6 | . . . 7 10 2 8 Leg 19 | . . 15 30 29 8 17 Wheel 2 | . 28 1 . . . . Hover 1 | . . 4 . . . 1 Device 8 | . 10 21 6 6 3 5 Storage 8 | . 14 11 9 7 3 7 Processor 2 | . . . 7 . . 3 Hackware 1 | . . . . 6 3 . Protection 4 | . . . 2 7 2 6 Energy Gun 5 | . 7 9 9 4 . 3 Energy Cannon 2 | . 6 10 2 . . . Ballistic Cannon 1 | . . . 5 5 . . Impact Weapon 2 | . . . . . 1 6 Peak Build Rating 48 | 6 11 18 33 45 38 48 Average Rating 24 | 4 9 16 26 40 13 24 On Entrance 14 | . 6 11 16 33 31 1 Avg Prop Armor Cover (%) . | . . . . . . . Naked Turns 72 | . . . . . 47 25 Heaviest Build 71 | 13 30 46 46 71 36 55 Greatest Support 67 | 26 32 32 62 67 50 45 Greatest Overweight (x) 11 | . . 2 1 1 9 11 Average Overweight (x) . | . . 1 . . . . Largest Inventory Capacity 15 | 8 15 15 15 15 15 15 Average Capacity 13 | 7 9 15 15 15 8 14 Most Carried 15 | 6 15 15 15 14 14 12 Average Carried 9 | 3 8 14 14 11 8 4 Final Capacity 15 | 8 15 15 15 15 5 15 Final Carried 15 | 6 15 13 15 13 5 10 Class Distribution -------------------- 84% | Mutant 15% | Scavenger-Mutant Dominant Class ---------------- Mutant | -10/Materials Mutant | -9/Materials Mutant | -8/Materials Mutant | -7/Factory Mutant | -7/Waste Mutant | -7/Factory Resources | -11 -10 -9 -8 -7 -7 -7 ----------- Run | Yrd Mat Mat Mat Fac Was Fac Matter Collected 1510 | 216 85 103 325 . . 781 Remotely . | . . . . . . . Salvage Created 2063 | . 150 526 600 58 . 729 Parts 115 | . 13 29 38 13 . 22 Haulers Intercepted . | . . . . . . . Recyclers Shooed 8 | . 4 . 3 . . 1 Parts Field Recycled . | . . . . . . . Retrieved Matter . | . . . . . . . Parts Self-Destructed . | . . . . . . . Prevented . | . . . . . . . Parts Restored . | . . . . . . . Kills | -11 -10 -9 -8 -7 -7 -7 ------- Run | Yrd Mat Mat Mat Fac Was Fac Combat Hostiles Destroyed 48 | . 4 12 17 3 . 12 Melee 1 | . . . . . . 1 Guns 22 | . 4 5 4 . . 9 Cannons 19 | . . 7 12 . . . AOE 4 | . . . 1 3 . . Classes Destroyed 13 | . 1 3 2 5 . 2 Worker 2 | . . . . 1 . 1 Builder 5 | . . . . 2 . 3 Tunneler 2 | . . . . 1 . 1 Recycler 1 | . . . . . . 1 Operator 2 | . . 1 . . . 1 Watcher 1 | . . . . . . 1 Swarmer 6 | . . . 6 . . . Grunt 24 | . 4 6 4 . . 10 Brawler 1 | . . 1 . . . . Sentry 11 | . . 5 6 . . . Specialist 2 | . . . . 2 . . Hunter 2 | . . . 1 . . 1 Programmer 2 | . . . . 1 . 1 Best Kill Streak 7 | . 3 5 5 7 . 5 Combat Bots Only 5 | . 3 5 5 3 . 5 Max Kills in Single Turn 2 | . 1 1 2 2 . 1 Gunslinging . | . . . . . . . Exploded 1 | . . . 1 1 . . Melee 1 | . . . . . . 1 Uniques/NPCs Destroyed . | . . . . . . . Combat | -11 -10 -9 -8 -7 -7 -7 -------- Run | Yrd Mat Mat Mat Fac Was Fac Hostile Shots Fired 367 | . 20 57 85 73 4 128 Missed 99 | . 4 15 25 24 . 31 Hits 268 | . 16 42 60 49 4 97 Melee 4 | . . . . . 4 . Projectile 264 | . 16 42 60 49 . 97 Critical Strikes 17 | . . 1 1 5 3 7 Part Disruptions 1 | . . . . 1 . . Damage Taken 4277 | . 182 851 785 787 169 1503 Core 1081 | . 54 183 131 95 117 501 Absorbed by Shields . | . . . . . . . Redirected to Shielding 95 | . . . . . . 95 Ignored by Resistances 85 | . . . . 85 . . Core Remaining (%) 77 | 100 78 54 76 . . . Volleys Fired 145 | . 18 30 32 9 . 56 Largest 2 | . 2 2 2 2 . 1 Hottest 133 | . 70 133 113 76 . 65 Shots Fired 233 | . 36 60 63 18 . 56 Gun 155 | . 36 29 34 . . 56 Cannon 59 | . . 29 29 1 . . Launcher 18 | . . 1 . 17 . . Special 1 | . . 1 . . . . Kinetic 73 | . 18 . 27 1 . 27 Thermal 95 | . 18 59 4 . . 14 Explosive 18 | . . 1 . 17 . . Electromagnetic 47 | . . . 32 . . 15 Robot Hit Streak 23 | . 4 23 10 4 . 8 Robot Miss Streak 8 | . 3 4 7 2 . 8 Penetration Max . | . . . . . . . Secondary Targets . | . . . . . . . Shots Hit Robots 181 | . 20 44 47 10 . 60 Core Hits 160 | . 12 45 48 13 . 42 Critical Kills . | . . . . . . . Critical Parts Destroyed 4 | . . . . . . 4 Critical Strikes 6 | . . . 1 . . 5 Burn 1 | . . . . . . 1 Corrupt 1 | . . . 1 . . . Smash 4 | . . . . . . 4 Melee Attacks 25 | . . . . . . 25 Impact 25 | . . . . . . 25 Slashing . | . . . . . . . Piercing . | . . . . . . . Sneak Attacks 5 | . . . . . . 5 Combat Hostiles . | . . . . . . . Follow-up Attacks . | . . . . . . . Damage Inflicted 4484 | . 219 760 912 793 . 1800 Guns 1704 | . 199 396 325 . . 784 Cannons 880 | . . 350 509 21 . . Explosions 824 | . . . 52 772 . . Melee 1004 | . . . . . . 1004 Ramming 68 | . 20 10 26 . . 12 Kinetic 1058 | . 87 . 476 21 . 474 Thermal 1077 | . 112 750 93 . . 122 Explosive 692 | . . . . 692 . . Electromagnetic 585 | . . . 317 80 . 188 Impact 1004 | . . . . . . 1004 Slashing . | . . . . . . . Piercing . | . . . . . . . Highest Corruption 14 | . . . . 1 10 14 Average Corruption 10 | . . . . 1 5 12 Corruption Purged . | . . . . . . . Corruption Blocked . | . . . . . . . Effects 53 | . . . . 2 5 46 Message Errors 8 | . . . . . 1 7 Matter Fused 11 | . . . . 1 . 10 Heat Flow Errors 6 | . . . . 1 1 4 Energy Discharges 12 | . . . . . 2 10 Parts Rejected 2 | . . . . . . 2 Data Loss (minor) 9 | . . . . . 1 8 Data Loss (major) 1 | . . . . . . 1 Misfires 1 | . . . . . . 1 Alerts 2 | . . . . . . 2 Weapon Failures 1 | . . . . . . 1 Overload Shots . | . . . . . . . Overflow Damage 680 | . . 190 . 14 . 476 Projectiles . | . . . . . . . Explosions 204 | . . 190 . 14 . . Melee 476 | . . . . . . 476 Knockbacks 19 | . . . 10 1 . 8 Impact 7 | . . . 1 . . 6 Kinetic 10 | . . . 9 1 . . Secondary 2 | . . . . . . 2 Self-Inflicted Damage 391 | . 9 261 . 115 . 6 Shots 8 | . . 3 . 5 . . Rammed 8 | . 4 . . . . 4 Targets Rammed 17 | . 4 3 6 . . 4 Kicked 9 | . . 3 6 . . . Crushed . | . . . . . . . Highest Temperature 410 | . 310 126 247 337 119 410 Average Temperature 123 | . 142 36 116 170 77 148 Received Heat Transfer 1284 | . 96 219 252 42 9 666 Effects 4 | . . . . 1 . 3 Energy Bleed 1 | . . . . 1 . . Interference 2 | . . . . . . 2 Damage (minor) 1 | . . . . . . 1 Siege Activations . | . . . . . . . Martial Activations . | . . . . . . . Shielding Activations . | . . . . . . . Robots Disrupted . | . . . . . . . Combat Hostiles . | . . . . . . . Robots Corrupted 6 | . . . . . . 6 Combat Hostiles 2 | . . . . . . 2 Parts Fried 7 | . . . . . . 7 Impact Corruptions 17 | . . . . . . 17 Robots Melted . | . . . . . . . Combat Hostiles . | . . . . . . . Parts Melted 2 | . . 2 . . . . Heat Transferred 1924 | . 333 1134 124 . . 333 Parts Sabotaged . | . . . . . . . Parts Stolen . | . . . . . . . Parts Stripped . | . . . . . . . Power Chain Reactions 2 | . . . 1 1 . . Alert | -11 -10 -9 -8 -7 -7 -7 ------- Run | Yrd Mat Mat Mat Fac Was Fac Maximum Alert Level 2 | . . 1 2 1 . . Low Security (%) 88 | 100 100 93 40 96 100 100 Level 1 7 | . . 6 32 3 . . Level 2 4 | . . . 26 . . . Level 3 . | . . . . . . . Level 4 . | . . . . . . . Level 5 . | . . . . . . . High Security . | . . . . . . . Max Security . | . . . . . . . Peak Influence 445 | . 80 249 445 203 46 177 Initial 187 | . . 13 101 187 46 . Average 107 | . 35 115 255 113 13 66 Influence Increases 1748 | . 112 447 564 252 . 373 Destroy 0b10 Robot/C 960 | . 80 240 340 60 . 240 Destroy 0b10 Robot/NC 65 | . . 5 . 20 . 40 Destroy Leader 262 | . 20 80 100 20 . 42 Successful Hack 25 | . 12 7 . . . 6 Disable Machine 150 | . . 60 15 75 . . Destroy Structure 106 | . . 40 4 62 . . Lose Combat Pursuer 180 | . . 15 105 15 . 45 Influence Decreases 1702 | . 80 238 392 532 133 327 Entered New Map 472 | . . 19 140 226 87 . Time Decay 1014 | . 80 179 222 246 20 267 Lost Part 216 | . . 40 30 60 26 60 Squads Dispatched 14 | . 2 2 2 3 . 5 Investigation 2 | . 1 1 . . . . Extermination 3 | . . . . 1 . 2 Reinforcement 9 | . 1 1 2 2 . 3 Assault . | . . . . . . . Garrison . | . . . . . . . Intercept . | . . . . . . . Searches Triggered . | . . . . . . . Construction Impeded 2 | . . . 1 . . 1 Haulers Reinforced . | . . . . . . . Active Scanning Responses . | . . . . . . . Cargo Convoy Interrupts . | . . . . . . . Stealth | -11 -10 -9 -8 -7 -7 -7 --------- Run | Yrd Mat Mat Mat Fac Was Fac Distress Signals 2 | . . 1 . 1 . . Communications Jammed . | . . . . . . . Distress Signals . | . . . . . . . Times Spotted 91 | . 7 22 27 9 6 20 Peak Tracking Total 7 | . 4 6 7 4 4 6 Tactical Retreats 7 | . . 1 3 1 . 2 Traps | -11 -10 -9 -8 -7 -7 -7 ------- Run | Yrd Mat Mat Mat Fac Was Fac Traps Triggered 2 | . . 1 . 1 . . Indirectly . | . . . . . . . Trap Hack Attempts . | . . . . . . . Triggered . | . . . . . . . Disarmed . | . . . . . . . Reprogrammed . | . . . . . . . Reused . | . . . . . . . Traps Extracted . | . . . . . . . Installed . | . . . . . . . Triggered . | . . . . . . . Machines | -11 -10 -9 -8 -7 -7 -7 ---------- Run | Yrd Mat Mat Mat Fac Was Fac Machines Disabled 10 | . . 4 1 5 . . Max in Single Turn 4 | . . 4 1 3 . . Machines Repaired . | . . . . . . . Machines Dismantled . | . . . . . . . Machines Sabotaged . | . . . . . . . Overloaded Fab Kills . | . . . . . . . Hacking | -11 -10 -9 -8 -7 -7 -7 --------- Run | Yrd Mat Mat Mat Fac Was Fac Machines Accessed 9 | . 3 3 . 1 . 2 Terminals 6 | . 2 2 . . . 2 Fabricators . | . . . . . . . Repair Stations . | . . . . . . . Recycling Units 3 | . 1 1 . 1 . . Scanalyzers . | . . . . . . . Garrison Access . | . . . . . . . Total Hacks 32 | . 12 9 . 4 . 7 Successful 18 | . 8 5 . 4 . 1 Failed 14 | . 4 4 . . . 6 Catastrophic 2 | . 1 . . . . 1 Database Lockouts . | . . . . . . . Manual . | . . . . . . . Terminals 24 | . 9 8 . . . 7 Fabricators . | . . . . . . . Repair Stations . | . . . . . . . Recycling Units 8 | . 3 1 . 4 . . Scanalyzers . | . . . . . . . Garrison Access . | . . . . . . . Terminal Hacks 11 | . 5 5 . . . 1 Record 5 | . 1 3 . . . 1 Branch Access Points 1 | . 1 . . . . . Alert Level 2 | . 1 1 . . . . Investigation Status 1 | . 1 . . . . . Zone Layout 2 | . 1 1 . . . . Fabricator Hacks . | . . . . . . . Repair Station Hacks . | . . . . . . . Recycling Unit Hacks 7 | . 3 . . 4 . . Recycle Component 4 | . 1 . . 3 . . Process 2 | . 1 . . 1 . . Report Inventory 1 | . 1 . . . . . Scanalyzer . | . . . . . . . Garrison Access Hacks . | . . . . . . . Unauthorized Hacks . | . . . . . . . Terminals . | . . . . . . . Fabricators . | . . . . . . . Repair Stations . | . . . . . . . Recycling Units . | . . . . . . . Scanalyzers . | . . . . . . . Garrison Access . | . . . . . . . Data Cores Recovered 1 | . . 1 . . . . Used . | . . . . . . . Hacking Detections 7 | . 2 3 . . . 2 Full Trace Events 2 | . 1 1 . . . . Feedback Events . | . . . . . . . Feedback Blocked . | . . . . . . . Robot Schematics Acquired . | . . . . . . . Robots Built . | . . . . . . . Authchips . | . . . . . . . Time . | . . . . . . . Total Robot Build Rating . | . . . . . . . Part Schematics Acquired . | . . . . . . . Parts Built . | . . . . . . . Authchips . | . . . . . . . Time . | . . . . . . . Total Part Build Rating . | . . . . . . . Part Studies Acquired . | . . . . . . . Parts Repaired . | . . . . . . . Time . | . . . . . . . Parts Recycled 4 | . 1 . . 3 . . Recycled Matter 169 | . 122 . . 47 . . Retrieved Matter . | . . . . . . . Retrieved Components . | . . . . . . . Parts Scanalyzed . | . . . . . . . Part Schematics Acquired . | . . . . . . . Parts Damaged . | . . . . . . . Bothacking | -11 -10 -9 -8 -7 -7 -7 ------------ Run | Yrd Mat Mat Mat Fac Was Fac Used RIF Installer . | . . . . . . . Robots Hacked . | . . . . . . . Non-combat . | . . . . . . . Combat . | . . . . . . . Robot Hacks Applied . | . . . . . . . Relay Couplers Released . | . . . . . . . Fabnet Peak Effective % . | . . . . . . . Robots Rewired . | . . . . . . . Allies Hacked . | . . . . . . . Hacks Repelled . | . . . . . . . Allies | -11 -10 -9 -8 -7 -7 -7 -------- Run | Yrd Mat Mat Mat Fac Was Fac Total Allies 1 | . . . . . 1 . Largest Group 1 | . . . . . 1 . Highest-Rated Group 31 | . . . . . 31 . Highest-Rated Ally 31 | . . . . . 31 . Total Orders . | . . . . . . . Ally Attacks 24 | . . . . . 24 . Total Damage 456 | . . . . . 456 . Kills 1 | . . . . . 1 . Allies Corrupted . | . . . . . . . Allies Melted . | . . . . . . . Intel | -11 -10 -9 -8 -7 -7 -7 ------- Run | Yrd Mat Mat Mat Fac Was Fac Active Infowar (turns) 409 | . . . . . . 409 Optics 325 | . . . . . . 325 ECM 409 | . . . . . . 409 Robot Analysis Total . | . . . . . . . Derelict Logs Recovered . | . . . . . . . Drone Launches . | . . . . . . . Drone Recoveries . | . . . . . . . Exploration | -11 -10 -9 -8 -7 -7 -7 ------------- Run | Yrd Mat Mat Mat Fac Was Fac Turns Passed 2852 | 64 203 449 464 539 128 1005 Spaces Moved 1657 | 56 141 199 246 383 184 448 Core 226 | 9 . . . . 150 67 Treads 24 | . . . 24 . . . Legs 1122 | . . 117 222 383 34 366 Wheels 200 | 47 141 12 . . . . Hover 85 | . . 70 . . . 15 Flight . | . . . . . . . Fastest Speed 50 | 50 90 105 122 123 50 50 Average Speed 131 | 83 90 159 131 128 65 166 Slowest Speed 600 | 90 90 190 190 195 500 600 Overloaded Moves . | . . . . . . . Propulsion Burnouts . | . . . . . . . Robots Hopped . | . . . . . . . Potential Cave-ins . | . . . . . . . Cave-ins Triggered . | . . . . . . . Exploration Rate (%) 27 | 3 33 31 27 15 76 10 Regions Visited 6 Branch Regions . Pre-discovered Areas . | . . . . . . . Known Exits Taken . | . . . . . . . Unknown Exits Taken 4 | 1 1 1 1 . . . Scrap Searched . | . . . . . . . Spaces Dug 5 | . . 5 . . . . Terrain Destroyed 112 | . . 41 3 68 . . Melee . | . . . . . . . Projectile . | . . . . . . . AOE 112 | . . 41 3 68 . . Terrain Rammed . | . . . . . . . Walls Destroyed . | . . . . . . . Machines Disabled . | . . . . . . . Actions | -11 -10 -9 -8 -7 -7 -7 --------- Run | Yrd Mat Mat Mat Fac Was Fac Total 2075 | 73 184 270 323 414 191 620 Wait 21 | . 1 4 . . 1 15 Move 1652 | 55 140 198 245 383 183 448 Hop . | . . . . . . . Pick Up 99 | 12 14 12 15 10 3 33 Fast Attach . | . . . . . . . Attach 51 | 6 1 8 9 5 2 20 Detach 1 | . . . 1 . . . Swap 32 | . 3 6 8 3 . 12 Drop 32 | . 3 9 7 4 2 7 Fire 145 | . 18 30 32 9 . 56 Melee 25 | . . . . . . 25 Ram 8 | . 4 . . . . 4 Kick 9 | . . 3 6 . . . Crush . | . . . . . . . Escape Stasis . | . . . . . . . Rewire . | . . . . . . . Trap . | . . . . . . . Miscellaneous . | . . . . . . . Route ------- -11/Scrapyard -10/Materials (discovered 2 exits: *Mat / Min) -9/Materials -8/Materials -7/Factory -7/Waste -7/Factory History --------- Turn | Location | Event 7 | -11/Scrapyard | Discovered new exit (range 16) 65 | -11/Scrapyard | Entered Materials 241 | -10/Materials | Identified exit to Mines 241 | -10/Materials | Discovered new exit (range 9) 268 | -10/Materials | Entered another Materials area 268 | -9/Materials | Evolved 2 slots: Power x1, Utility x1 311 | -9/Materials | Build established: Mutant 600 | -9/Materials | Discovered new exit (range 20) 717 | -9/Materials | Entered another Materials area 717 | -8/Materials | Evolved 2 slots: Propulsion x2 721 | -8/Materials | Lost 3 parts (1n1u1w) 1174 | -8/Materials | Discovered new exit (range 4) 1181 | -8/Materials | Entered Factory 1181 | -7/Factory | Evolved 2 slots: Power x1, Utility x1 1628 | -7/Factory | Lost 3 parts (1p2w) 1720 | -7/Factory | Sucked down chute 1720 | -7/Factory | Entered Waste 1721 | -7/Waste | Met a frightened Derelict 1725 | -7/Waste | Lost 3 parts (1n2w) 1735 | -7/Waste | EMP discharged 1742 | -7/Waste | Spotted C-40 Crusher 1750 | -7/Waste | Spotted C-40 Crusher 1756 | -7/Waste | Spotted C-40 Crusher 1766 | -7/Waste | Allies destroyed C-40 Crusher 1766 | -7/Waste | Spotted C-40 Crusher 1766 | -7/Waste | Crushed by Compactor (1 part destroyed, 2 dropped) 1770 | -7/Waste | Crushed by Compactor (1 part destroyed, 1 dropped) 1772 | -7/Waste | Spotted C-40 Crusher 1775 | -7/Waste | Crushed by Compactor (1 part destroyed, 1 dropped) 1806 | -7/Waste | Lost 5 parts (1p1n3u) 1820 | -7/Waste | Spotted C-40 Crusher 1823 | -7/Waste | Crushed by Compactor (1 part destroyed) 1835 | -7/Waste | EMP discharged 1835 | -7/Waste | System corruption reached 10% 1841 | -7/Waste | Discovered new exit (range 12) 1848 | -7/Waste | Entered Factory 2207 | -7/Factory | Core integrity fell below 50% 2327 | -7/Factory | Core integrity fell below 20% 2675 | -7/Factory | Build established: Scavenger-Mutant 2853 | -7/Factory | Destroyed by P-60 Hacker with Shock Rifle Last Messages --------------- System corrupted: Energy discharge (-159). ALERT: Potential suspicious activity detected, Programmers report to Factory Zone 8F. Acquired Gravmag System. Dropped Aluminum Leg. Dropped Lgt. Treads. Acquired Gravmag System. System corrupted: Heat flow error (+232). Dropped Aluminum Leg. Acquired Gravmag System. Dropped Aluminum Leg. Acquired Gravmag System. K-01 Serf collects debris. Dropped Lrg. Matter Pod. K-01 Serf collects debris. System corrupted: Component data lost. K-01 Serf collects debris. Lgt. Nuclear Core destroyed. P-60 Hacker suffers critical hit (Burn). System corrupted: IFF burst signal emitted. Map ----- +----------------------------------------------------+ | ?? ???????????????????????????????# + """ "" | | ??????????????????????????????????# # """ "" | | ??????????????????????????????????#^ ^ # | | ??????????????????????????????????# ^# | | ??????????????????????????????????# # | | ??????????????????????????????????# # | | ??????????????????????????????????# #######+## | | ??????????????????????????????????# #?????# #? | | ??????????????????????????????????# #?????# #? | | ??????????????????????????????????# ####### ## | | ??????????????????????????????????# !! | | ??????????????????????????????????# !! ### | | ??????????????????????????????????# !! ### | | ??????????????????????????????????#!! # | | ??????????????????????????????????#! #" | | ??????????????????????????????????# #" | | ?????????????????????####+##??????# #" | | ?????????????????????# #??????# #T | | ?????????????????????# #??????######## #" | | ?????????????????????# #?????????????# #" | | ?????????????????????# #??????? "" # #" | | ?????????????????????# #??????? G" + += | | ?????????????????????# #??????? "" # ### | | ?????????????????????# #?????? ?# #?? | | ?????????????????????# #????? ""??# #?? | | ?????????????????????# @ #????# "???# #?? | | ?????????????????????# #????# ????# #?? | | ?????????????????????# #????# ?????# #?? | | ?????????????????????# #?# ########### #?? | | ?????????????????????####/##?# +?? | | ??????????????????#?????#p#??####### ##### #?? | | ??????????????????# ????# #????????# #???# #?? | | ??????????????????# ????# #????????# #???# #?? | | ??????????????????# ##### #????????# #???# #?? | | ??????????????????# ^== #????????# #??? #?? | | ??????????????????# ^!== #????????# #???#######?? | | ??????????????????#^ #????????# #???????????? | | ??????????????????+ #????????# #???????????? | | ??????????????????# #????????# #???????????? | | ??????????????????# #????????# #???????????? | | ??????????????????# !/ +????????# #???????????? | | ??????????????????#^ // #????????# #???????????? | | ?????????########## / #????????# #???? #?????? | | ??????# #??#######+##? #??????? | | ?????????### "" #??# """" # #??????? | | ???????????# "" #??# """" + #??????? | | ???????????# """ #??# """" # #??????? | | ???????????# """ #??# """" ! #? #??????? | | ??????????## """ #??# #?? #??????? | | ?????? #### #??????????? | +----------------------------------------------------+ Best States ------------- Heat Dissipation 62 Energy Generation 37 Energy Capacity 910 Matter Stores 300 Matter Capacity 450 Sight Range 20 Terrain Scan Density 10 ECM Strength 2 Additional Mass Support 6 Armor Coverage 150 Resistance: EM 15 Power Shielding 66 Weapon Cycling 15 Evasion (%) 55 Targeting Accuracy 8 Recoil Reduction 3 Defensive Hacking 10 Item Schematics ----------------- None Robot Schematics ------------------ None Fabricated ------------ Nothing Repaired ---------- Nothing Studied --------- None Alien Tech Used ----------------- None Achievements -------------- Hey, That's Mine! Challenges ------------ None Game ------ Seed GrapheneProtonFacilitator Manual? 0 Play Time 01:23:56 Cumulative 12.7 hours Start 2026.02.07 @ 09:38:05 End 2026.02.07 @ 11:16:24 Sessions 3 Manual Loads 0 Difficulty Rogue Special Mode None Game No. 23 Rogue 23 Adventurer 0 Explorer 0 Win Type - Total 0 Types 0/0/0/0/0/0/0/0/0/0 Lore% 4 Gallery% 14 Achievement% 11 Wizard Run 0 Options --------- Layout 1 ASCII 0 Keyboard 0 Movement Numpad Keybinds 0 Fullscreen 1 Font 32/SmallcapsGlow Map View 50x35 Zoom Use 0% Tactical HUD 0 Map Filters NONE Filters NONE Steam 1 RUN: 69a2250b-89d9-42d9-b1db-e112f3c16a7d